[Event "Titled Tuesday Blitz April 19 Early 2022"]
[White "Xu, Yi"]
[Black "Plazuelo Pascual, Juan"]
[WhiteFideId "8605564"]
[BlackFideId "32059566"]
[WhiteElo "2471"]
[BlackElo "2359"]
[Result "1-0"]
[Round "03"]
[TimeControl "180+1"]
[Date "2022.04.19"]
[WhiteClock "0:00:12"]
[BlackClock "0:00:05"]

1. e4 {[%clk 0:03:00]}  c5 {[%clk 0:02:59]} 2. Nf3 {[%clk 0:03:01]}  Nc6 {[%clk 0:02:59]} 3. Bb5 {[%clk 0:03:01]}  d6 {[%clk 0:02:59]} 4. O-O {[%clk 0:03:00]}  Bd7 {[%clk 0:02:59]} 5. Re1 {[%clk 0:02:59]}  Nf6 {[%clk 0:02:54]} 6. c3 {[%clk 0:02:59]}  a6 {[%clk 0:02:51]} 7. Bf1 {[%clk 0:02:59]}  e5 {[%clk 0:02:47]} 8. d4 {[%clk 0:02:54]}  cxd4 {[%clk 0:02:46]} 9. cxd4 {[%clk 0:02:54]}  Bg4 {[%clk 0:02:46]} 10. d5 {[%clk 0:02:48]}  Nd4 {[%clk 0:02:46]} 11. Be3 {[%clk 0:02:47]}  Nxf3+ {[%clk 0:02:44]} 12. gxf3 {[%clk 0:02:48]}  Bd7 {[%clk 0:02:45]} 13. a4 {[%clk 0:02:42]}  Be7 {[%clk 0:02:42]} 14. a5 {[%clk 0:02:35]}  Nh5 {[%clk 0:02:31]} 15. Nd2 {[%clk 0:02:29]}  Bg5 {[%clk 0:02:28]} 16. Nc4 {[%clk 0:02:21]}  Qf6 {[%clk 0:02:09]} 17. Bxg5 {[%clk 0:02:05]}  Qxg5+ {[%clk 0:02:08]} 18. Kh1 {[%clk 0:02:06]}  Qf6 {[%clk 0:01:45]} 19. Nb6 {[%clk 0:01:58]}  Rd8 {[%clk 0:01:44]} 20. Rc1 {[%clk 0:01:47]}  Nf4 {[%clk 0:01:39]} 21. Rc7 {[%clk 0:01:30]}  Bh3 {[%clk 0:01:01]} 22. Bxh3 {[%clk 0:01:18]}  Nxh3 {[%clk 0:01:01]} 23. Qa4+ {[%clk 0:01:18]}  Kf8 {[%clk 0:01:01]} 24. Qa3 {[%clk 0:01:12]}  g5 {[%clk 0:00:20]} 25. Nd7+ {[%clk 0:01:01]}  Rxd7 {[%clk 0:00:20]} 26. Rxd7 {[%clk 0:01:01]}  Kg7 {[%clk 0:00:21]} 27. Rc1 {[%clk 0:00:42]}  g4 {[%clk 0:00:13]} 28. fxg4 {[%clk 0:00:36]}  Nxf2+ {[%clk 0:00:12]} 29. Kg2 {[%clk 0:00:36]}  Qg5 {[%clk 0:00:06]} 30. Qf3 {[%clk 0:00:22]}  Rf8 {[%clk 0:00:04]} 31. Rcc7 {[%clk 0:00:19]}  Nxg4 {[%clk 0:00:04]} 32. Rxf7+ {[%clk 0:00:18]}  Kh6 {[%clk 0:00:05]} 33. Rxh7+ {[%clk 0:00:12]}  Kg6 {[%clk 0:00:05]} 34. Rcg7# {[%clk 0:00:12]} 1-0


[Site "https://www.chess.com"]

[Event "Titled Tuesday Blitz April 19 Early 2022"]
[White "Yurovskykh, Oleksandr"]
[Black "Aakanksha Hagawane"]
[WhiteFideId "14134020"]
[BlackFideId "25014510"]
[WhiteElo "2292"]
[BlackElo "1971"]
[Result "1-0"]
[Round "03"]
[TimeControl "180+1"]
[Date "2022.04.19"]
[WhiteClock "0:00:18"]
[BlackClock "0:00:06"]

1. d4 {[%clk 0:03:00]}  Nf6 {[%clk 0:02:59]} 2. Nf3 {[%clk 0:02:58]}  c5 {[%clk 0:02:57]} 3. dxc5 {[%clk 0:02:53]}  Qa5+ {[%clk 0:02:52]} 4. Nbd2 {[%clk 0:02:39]}  e6 {[%clk 0:02:37]} 5. e3 {[%clk 0:02:25]}  Qxc5 {[%clk 0:02:24]} 6. Be2 {[%clk 0:02:21]}  Be7 {[%clk 0:02:23]} 7. O-O {[%clk 0:02:21]}  O-O {[%clk 0:02:23]} 8. c4 {[%clk 0:02:21]}  b6 {[%clk 0:02:18]} 9. b3 {[%clk 0:02:15]}  Bb7 {[%clk 0:02:17]} 10. Bb2 {[%clk 0:02:15]}  d5 {[%clk 0:02:11]} 11. Rc1 {[%clk 0:02:14]}  dxc4 {[%clk 0:02:08]} 12. Nxc4 {[%clk 0:02:03]}  Qd5 {[%clk 0:02:01]} 13. Qc2 {[%clk 0:01:59]}  Nc6 {[%clk 0:01:53]} 14. Rfd1 {[%clk 0:01:56]}  Qh5 {[%clk 0:01:34]} 15. Nd6 {[%clk 0:01:43]}  Bxd6 {[%clk 0:01:26]} 16. Rxd6 {[%clk 0:01:44]}  Nb4 {[%clk 0:01:25]} 17. Qb1 {[%clk 0:01:18]}  Nbd5 {[%clk 0:00:56]} 18. Bxf6 {[%clk 0:01:05]}  Nxf6 {[%clk 0:00:56]} 19. Rc7 {[%clk 0:00:59]}  Be4 {[%clk 0:00:55]} 20. Qc1 {[%clk 0:00:59]}  Rad8 {[%clk 0:00:53]} 21. Rxd8 {[%clk 0:00:58]}  Rxd8 {[%clk 0:00:54]} 22. Rc8 {[%clk 0:00:59]}  Qd5 {[%clk 0:00:53]} 23. Rxd8+ {[%clk 0:00:58]}  Qxd8 {[%clk 0:00:53]} 24. Nd2 {[%clk 0:00:51]}  Bb7 {[%clk 0:00:49]} 25. f3 {[%clk 0:00:49]}  h6 {[%clk 0:00:47]} 26. Qc3 {[%clk 0:00:44]}  Nd5 {[%clk 0:00:44]} 27. Qd4 {[%clk 0:00:39]}  Qg5 {[%clk 0:00:26]} 28. Nf1 {[%clk 0:00:32]}  Qg6 {[%clk 0:00:17]} 29. Bd3 {[%clk 0:00:27]}  Qg5 {[%clk 0:00:16]} 30. e4 {[%clk 0:00:20]}  Nf4 {[%clk 0:00:15]} 31. g3 {[%clk 0:00:20]}  Nxd3 {[%clk 0:00:14]} 32. Qxd3 {[%clk 0:00:21]}  Qc5+ {[%clk 0:00:14]} 33. Qe3 {[%clk 0:00:20]}  Qc2 {[%clk 0:00:13]} 34. Qd2 {[%clk 0:00:20]}  Qb1 {[%clk 0:00:13]} 35. Kg2 {[%clk 0:00:19]}  Ba6 {[%clk 0:00:13]} 36. Ne3 {[%clk 0:00:19]}  Qd3 {[%clk 0:00:12]} 37. Qxd3 {[%clk 0:00:19]}  Bxd3 {[%clk 0:00:13]} 38. e5 {[%clk 0:00:20]}  Kf8 {[%clk 0:00:13]} 39. a3 {[%clk 0:00:17]}  Ke7 {[%clk 0:00:13]} 40. Kf2 {[%clk 0:00:18]}  a5 {[%clk 0:00:12]} 41. Ke1 {[%clk 0:00:18]}  f6 {[%clk 0:00:12]} 42. f4 {[%clk 0:00:17]}  fxe5 {[%clk 0:00:10]} 43. fxe5 {[%clk 0:00:18]}  Kd7 {[%clk 0:00:08]} 44. Kd2 {[%clk 0:00:18]}  Ba6 {[%clk 0:00:08]} 45. Kc3 {[%clk 0:00:19]}  Kc6 {[%clk 0:00:08]} 46. Kd4 {[%clk 0:00:19]}  Bf1 {[%clk 0:00:06]} 47. Nxf1 {[%clk 0:00:18]} 1-0


[Site "https://www.chess.com"]

[Event "Titled Tuesday Blitz April 19 Early 2022"]
[White "Zanette, Edgard Vinicius"]
[Black "Petrovic, Aleksa"]
[WhiteFideId "2109263"]
[BlackFideId "967629"]
[WhiteElo "2182"]
[BlackElo "2198"]
[Result "1/2-1/2"]
[Round "03"]
[TimeControl "180+1"]
[Date "2022.04.19"]
[WhiteClock "0:00:04"]
[BlackClock "0:00:07"]

1. e4 {[%clk 0:03:00]}  b6 {[%clk 0:02:56]} 2. d4 {[%clk 0:02:59]}  Bb7 {[%clk 0:02:56]} 3. Bd3 {[%clk 0:02:59]}  e6 {[%clk 0:02:54]} 4. Nf3 {[%clk 0:02:57]}  c5 {[%clk 0:02:50]} 5. Qe2 {[%clk 0:02:53]}  cxd4 {[%clk 0:02:49]} 6. Nxd4 {[%clk 0:02:53]}  Ne7 {[%clk 0:02:44]} 7. O-O {[%clk 0:02:50]}  Nec6 {[%clk 0:02:44]} 8. Nf3 {[%clk 0:02:40]}  Nb4 {[%clk 0:02:32]} 9. Bc4 {[%clk 0:02:37]}  Ba6 {[%clk 0:02:31]} 10. Bf4 {[%clk 0:02:18]}  Qc8 {[%clk 0:02:22]} 11. Bxa6 {[%clk 0:02:11]}  Qxa6 {[%clk 0:02:12]} 12. Qd2 {[%clk 0:01:56]}  d5 {[%clk 0:01:54]} 13. exd5 {[%clk 0:01:42]}  Nxd5 {[%clk 0:01:53]} 14. Re1 {[%clk 0:01:27]}  Be7 {[%clk 0:01:20]} 15. Nd4 {[%clk 0:01:06]}  O-O {[%clk 0:00:55]} 16. Bxb8 {[%clk 0:00:58]}  Raxb8 {[%clk 0:00:50]} 17. Nc6 {[%clk 0:00:56]}  Rbc8 {[%clk 0:00:32]} 18. Nxe7+ {[%clk 0:00:54]}  Nxe7 {[%clk 0:00:33]} 19. Nc3 {[%clk 0:00:53]}  Rfd8 {[%clk 0:00:32]} 20. Qg5 {[%clk 0:00:53]}  Nf5 {[%clk 0:00:27]} 21. Rad1 {[%clk 0:00:49]}  f6 {[%clk 0:00:24]} 22. Qg4 {[%clk 0:00:43]}  b5 {[%clk 0:00:21]} 23. Qb4 {[%clk 0:00:40]}  Rxd1 {[%clk 0:00:16]} 24. Rxd1 {[%clk 0:00:41]}  Qc6 {[%clk 0:00:15]} 25. h3 {[%clk 0:00:34]}  a6 {[%clk 0:00:15]} 26. Rd2 {[%clk 0:00:31]}  Kf7 {[%clk 0:00:14]} 27. a3 {[%clk 0:00:30]}  Qc5 {[%clk 0:00:10]} 28. Rd7+ {[%clk 0:00:25]}  Ke8 {[%clk 0:00:07]} 29. Qxc5 {[%clk 0:00:23]}  Rxc5 {[%clk 0:00:08]} 30. Ra7 {[%clk 0:00:22]}  Rc6 {[%clk 0:00:08]} 31. Kf1 {[%clk 0:00:16]}  Ne7 {[%clk 0:00:08]} 32. Ke2 {[%clk 0:00:15]}  Kf8 {[%clk 0:00:07]} 33. Kd2 {[%clk 0:00:13]}  Nc8 {[%clk 0:00:07]} 34. Ra8 {[%clk 0:00:13]}  Kf7 {[%clk 0:00:08]} 35. Ne4 {[%clk 0:00:12]}  Kg6 {[%clk 0:00:05]} 36. g4 {[%clk 0:00:11]}  Nb6 {[%clk 0:00:06]} 37. Rd8 {[%clk 0:00:08]}  Nd5 {[%clk 0:00:05]} 38. Rd6 {[%clk 0:00:07]}  Rxd6 {[%clk 0:00:04]} 39. Nxd6 {[%clk 0:00:07]}  h5 {[%clk 0:00:04]} 40. gxh5+ {[%clk 0:00:06]}  Kxh5 {[%clk 0:00:05]} 41. Ne4 {[%clk 0:00:04]}  f5 {[%clk 0:00:04]} 42. Nc5 {[%clk 0:00:04]}  Nf4 {[%clk 0:00:04]} 43. Ke3 {[%clk 0:00:04]}  g5 {[%clk 0:00:03]} 44. Nxa6 {[%clk 0:00:04]}  Nxh3 {[%clk 0:00:03]} 45. Nc7 {[%clk 0:00:04]}  f4+ {[%clk 0:00:04]} 46. Kf3 {[%clk 0:00:04]}  g4+ {[%clk 0:00:04]} 47. Kg2 {[%clk 0:00:05]}  e5 {[%clk 0:00:04]} 48. Nd5 {[%clk 0:00:04]}  f3+ {[%clk 0:00:03]} 49. Kg3 {[%clk 0:00:04]}  Kg5 {[%clk 0:00:04]} 50. b3 {[%clk 0:00:04]}  Ng1 {[%clk 0:00:04]} 51. Kh2 {[%clk 0:00:03]}  Ne2 {[%clk 0:00:04]} 52. Ne3 {[%clk 0:00:02]}  Kf4 {[%clk 0:00:04]} 53. Nf1 {[%clk 0:00:02]}  e4 {[%clk 0:00:04]} 54. a4 {[%clk 0:00:02]}  bxa4 {[%clk 0:00:04]} 55. bxa4 {[%clk 0:00:03]}  Nc3 {[%clk 0:00:04]} 56. a5 {[%clk 0:00:03]}  Nb5 {[%clk 0:00:04]} 57. Ng3 {[%clk 0:00:02]}  e3 {[%clk 0:00:03]} 58. fxe3+ {[%clk 0:00:02]}  Kxe3 {[%clk 0:00:04]} 59. c4 {[%clk 0:00:01]}  Na7 {[%clk 0:00:03]} 60. c5 {[%clk 0:00:01]}  Nc6 {[%clk 0:00:04]} 61. a6 {[%clk 0:00:01]}  Kf2 {[%clk 0:00:03]} 62. Nf5 {[%clk 0:00:01]}  Ke1 {[%clk 0:00:03]} 63. Kg3 {[%clk 0:00:01]}  f2 {[%clk 0:00:03]} 64. Ne3 {[%clk 0:00:02]}  f1=Q {[%clk 0:00:04]} 65. Nxf1 {[%clk 0:00:02]}  Kxf1 {[%clk 0:00:05]} 66. Kxg4 {[%clk 0:00:03]}  Ke2 {[%clk 0:00:05]} 67. Kf5 {[%clk 0:00:03]}  Kd3 {[%clk 0:00:06]} 68. Ke6 {[%clk 0:00:04]}  Kc4 {[%clk 0:00:06]} 69. Kd6 {[%clk 0:00:05]}  Kb5 {[%clk 0:00:07]} 70. Kc7 {[%clk 0:00:03]}  Kxc5 {[%clk 0:00:07]} 71. Kb7 {[%clk 0:00:03]}  Kb5 {[%clk 0:00:07]} 72. a7 {[%clk 0:00:04]}  Nxa7 {[%clk 0:00:07]} 1/2-1/2


[Site "https://www.chess.com"]

[Event "Titled Tuesday Blitz April 19 Early 2022"]
[White "Zemlyanskii, Ivan"]
[Black "Agasarov, Benik"]
[WhiteFideId "24249971"]
[BlackFideId "13314823"]
[WhiteElo "1759"]
[BlackElo "2502"]
[Result "1/2-1/2"]
[Round "03"]
[TimeControl "180+1"]
[Date "2022.04.19"]
[WhiteClock "0:00:08"]
[BlackClock "0:00:08"]

1. d4 {[%clk 0:03:00]}  Nf6 {[%clk 0:02:59]} 2. c4 {[%clk 0:03:00]}  e6 {[%clk 0:03:00]} 3. Nf3 {[%clk 0:02:56]}  d5 {[%clk 0:02:58]} 4. e3 {[%clk 0:02:56]}  c5 {[%clk 0:02:54]} 5. Nc3 {[%clk 0:02:56]}  a6 {[%clk 0:02:54]} 6. cxd5 {[%clk 0:02:55]}  exd5 {[%clk 0:02:53]} 7. g3 {[%clk 0:02:55]}  Nc6 {[%clk 0:02:51]} 8. Bg2 {[%clk 0:02:54]}  Be7 {[%clk 0:02:51]} 9. O-O {[%clk 0:02:53]}  O-O {[%clk 0:02:50]} 10. dxc5 {[%clk 0:02:53]}  Bxc5 {[%clk 0:02:50]} 11. b3 {[%clk 0:02:53]}  d4 {[%clk 0:02:50]} 12. exd4 {[%clk 0:02:47]}  Nxd4 {[%clk 0:02:49]} 13. Be3 {[%clk 0:02:41]}  Nxf3+ {[%clk 0:02:20]} 14. Qxf3 {[%clk 0:02:40]}  Bg4 {[%clk 0:02:20]} 15. Qf4 {[%clk 0:02:22]}  Bxe3 {[%clk 0:02:15]} 16. Qxe3 {[%clk 0:02:23]}  Re8 {[%clk 0:02:10]} 17. Qc5 {[%clk 0:02:03]}  Rc8 {[%clk 0:02:07]} 18. Qb4 {[%clk 0:02:01]}  a5 {[%clk 0:02:05]} 19. Qxb7 {[%clk 0:01:42]}  Rxc3 {[%clk 0:02:03]} 20. h3 {[%clk 0:01:36]}  Bc8 {[%clk 0:01:53]} 21. Qb5 {[%clk 0:01:27]}  Bd7 {[%clk 0:01:52]} 22. Qb7 {[%clk 0:01:25]}  Rc7 {[%clk 0:01:49]} 23. Qa6 {[%clk 0:01:18]}  Rc5 {[%clk 0:01:35]} 24. Rfd1 {[%clk 0:01:09]}  Qc8 {[%clk 0:01:34]} 25. Qd6 {[%clk 0:00:59]}  Qc7 {[%clk 0:01:20]} 26. Qd3 {[%clk 0:00:49]}  Bc6 {[%clk 0:01:16]} 27. Bf1 {[%clk 0:00:33]}  Bb5 {[%clk 0:01:13]} 28. Qd4 {[%clk 0:00:31]}  Bxf1 {[%clk 0:01:10]} 29. Kxf1 {[%clk 0:00:25]}  Rd5 {[%clk 0:01:06]} 30. Qa4 {[%clk 0:00:23]}  Rxd1+ {[%clk 0:01:04]} 31. Rxd1 {[%clk 0:00:24]}  Qc2 {[%clk 0:01:03]} 32. Rd6 {[%clk 0:00:18]}  Qe2+ {[%clk 0:00:52]} 33. Kg1 {[%clk 0:00:17]}  Rc8 {[%clk 0:00:49]} 34. Qf4 {[%clk 0:00:14]}  Qxa2 {[%clk 0:00:31]} 35. Kh2 {[%clk 0:00:08]}  Qxb3 {[%clk 0:00:28]} 36. Rxf6 {[%clk 0:00:09]}  Rf8 {[%clk 0:00:22]} 37. Ra6 {[%clk 0:00:09]}  Qb5 {[%clk 0:00:21]} 38. Ra7 {[%clk 0:00:08]}  Qb6 {[%clk 0:00:22]} 39. Qe3 {[%clk 0:00:08]}  Qb5 {[%clk 0:00:19]} 40. Qd2 {[%clk 0:00:08]}  a4 {[%clk 0:00:19]} 41. Qa2 {[%clk 0:00:08]}  h5 {[%clk 0:00:17]} 42. Rxa4 {[%clk 0:00:07]}  Qb6 {[%clk 0:00:14]} 43. Rf4 {[%clk 0:00:07]}  g6 {[%clk 0:00:15]} 44. h4 {[%clk 0:00:07]}  Qd6 {[%clk 0:00:14]} 45. Qe2 {[%clk 0:00:07]}  Rd8 {[%clk 0:00:11]} 46. Re4 {[%clk 0:00:07]}  Qd7 {[%clk 0:00:10]} 47. Qf3 {[%clk 0:00:07]}  Re8 {[%clk 0:00:10]} 48. Rxe8+ {[%clk 0:00:06]}  Qxe8 {[%clk 0:00:11]} 49. Qf4 {[%clk 0:00:07]}  Qe6 {[%clk 0:00:11]} 50. Kg2 {[%clk 0:00:07]}  Kh7 {[%clk 0:00:11]} 51. Qd4 {[%clk 0:00:07]}  Qc6+ {[%clk 0:00:11]} 52. Kg1 {[%clk 0:00:07]}  Qf3 {[%clk 0:00:11]} 53. Qd7 {[%clk 0:00:07]}  Kg7 {[%clk 0:00:10]} 54. Qe7 {[%clk 0:00:07]}  Qf6 {[%clk 0:00:10]} 55. Qe3 {[%clk 0:00:07]}  Qf5 {[%clk 0:00:09]} 56. Qc3+ {[%clk 0:00:07]}  Qf6 {[%clk 0:00:09]} 57. Qc5 {[%clk 0:00:07]}  Qf5 {[%clk 0:00:09]} 58. Qxf5 {[%clk 0:00:07]}  gxf5 {[%clk 0:00:10]} 59. Kg2 {[%clk 0:00:07]}  f4 {[%clk 0:00:10]} 60. Kf3 {[%clk 0:00:05]}  fxg3 {[%clk 0:00:10]} 61. fxg3 {[%clk 0:00:06]}  Kg6 {[%clk 0:00:09]} 62. Ke4 {[%clk 0:00:05]}  f6 {[%clk 0:00:04]} 63. Kf4 {[%clk 0:00:05]}  Kf7 {[%clk 0:00:04]} 64. Kf5 {[%clk 0:00:05]}  Kg7 {[%clk 0:00:05]} 65. Kf4 {[%clk 0:00:04]}  Kg6 {[%clk 0:00:06]} 66. Ke4 {[%clk 0:00:05]}  Kg7 {[%clk 0:00:06]} 67. Kd5 {[%clk 0:00:04]}  Kg6 {[%clk 0:00:06]} 68. Ke6 {[%clk 0:00:05]}  Kg7 {[%clk 0:00:06]} 69. Kf5 {[%clk 0:00:04]}  Kf7 {[%clk 0:00:07]} 70. Kf4 {[%clk 0:00:04]}  Kg6 {[%clk 0:00:07]} 71. Ke4 {[%clk 0:00:05]}  Kf7 {[%clk 0:00:06]} 72. Kd5 {[%clk 0:00:06]}  Kg6 {[%clk 0:00:07]} 73. Ke6 {[%clk 0:00:05]}  Kg7 {[%clk 0:00:07]} 74. Kf5 {[%clk 0:00:06]}  Kf7 {[%clk 0:00:08]} 75. Ke4 {[%clk 0:00:06]}  Kg6 {[%clk 0:00:07]} 76. Kf4 {[%clk 0:00:07]}  Kg7 {[%clk 0:00:08]} 77. Kf5 {[%clk 0:00:08]} 1/2-1/2


[Site "https://www.chess.com"]

[Event "Titled Tuesday Blitz April 19 Early 2022"]
[White "Zhigalko, Sergei"]
[Black "Zhu, Jiner"]
[WhiteFideId "13502956"]
[BlackFideId "8608059"]
[WhiteElo "2662"]
[BlackElo "2281"]
[Result "1-0"]
[Round "03"]
[TimeControl "180+1"]
[Date "2022.04.19"]
[WhiteClock "0:00:04"]
[BlackClock "0:00:02"]

1. e4 {[%clk 0:03:00]}  e5 {[%clk 0:02:58]} 2. Nf3 {[%clk 0:02:59]}  Nc6 {[%clk 0:02:58]} 3. Bc4 {[%clk 0:02:54]}  Bc5 {[%clk 0:02:56]} 4. b4 {[%clk 0:02:54]}  Bb6 {[%clk 0:02:49]} 5. a4 {[%clk 0:02:53]}  a6 {[%clk 0:02:45]} 6. Nc3 {[%clk 0:02:52]}  Nf6 {[%clk 0:02:44]} 7. Nd5 {[%clk 0:02:52]}  O-O {[%clk 0:02:18]} 8. Nxb6 {[%clk 0:02:39]}  cxb6 {[%clk 0:02:18]} 9. d3 {[%clk 0:02:31]}  d6 {[%clk 0:02:16]} 10. c3 {[%clk 0:02:30]}  h6 {[%clk 0:02:12]} 11. O-O {[%clk 0:02:19]}  Be6 {[%clk 0:02:08]} 12. Bxe6 {[%clk 0:02:06]}  fxe6 {[%clk 0:02:09]} 13. Re1 {[%clk 0:02:05]}  Ne7 {[%clk 0:02:02]} 14. Qb3 {[%clk 0:02:03]}  Qd7 {[%clk 0:02:02]} 15. Be3 {[%clk 0:02:03]}  b5 {[%clk 0:01:58]} 16. axb5 {[%clk 0:02:02]}  axb5 {[%clk 0:01:59]} 17. Ra5 {[%clk 0:01:44]}  Nc6 {[%clk 0:01:31]} 18. Rxb5 {[%clk 0:01:11]}  Nd4 {[%clk 0:01:27]} 19. cxd4 {[%clk 0:01:11]}  Qxb5 {[%clk 0:01:26]} 20. Qxe6+ {[%clk 0:01:12]}  Kh8 {[%clk 0:01:25]} 21. dxe5 {[%clk 0:00:59]}  dxe5 {[%clk 0:01:08]} 22. Nxe5 {[%clk 0:00:59]}  Rfe8 {[%clk 0:01:03]} 23. Ng6+ {[%clk 0:00:15]}  Kh7 {[%clk 0:01:02]} 24. Ne7 {[%clk 0:00:14]}  Qxb4 {[%clk 0:00:45]} 25. Qf5+ {[%clk 0:00:14]}  Kh8 {[%clk 0:00:45]} 26. Ng6+ {[%clk 0:00:15]}  Kg8 {[%clk 0:00:46]} 27. Rf1 {[%clk 0:00:08]}  Qb3 {[%clk 0:00:43]} 28. e5 {[%clk 0:00:05]}  Nh7 {[%clk 0:00:12]} 29. h4 {[%clk 0:00:06]}  Rad8 {[%clk 0:00:11]} 30. d4 {[%clk 0:00:05]}  Nf8 {[%clk 0:00:09]} 31. h5 {[%clk 0:00:06]}  Nxg6 {[%clk 0:00:09]} 32. hxg6 {[%clk 0:00:05]}  Qd5 {[%clk 0:00:09]} 33. Rb1 {[%clk 0:00:04]}  Rd7 {[%clk 0:00:08]} 34. Kh2 {[%clk 0:00:04]}  b5 {[%clk 0:00:08]} 35. Rc1 {[%clk 0:00:04]}  Rb7 {[%clk 0:00:08]} 36. Rc5 {[%clk 0:00:04]}  Qd7 {[%clk 0:00:07]} 37. Qxd7 {[%clk 0:00:04]}  Rxd7 {[%clk 0:00:08]} 38. Rxb5 {[%clk 0:00:05]}  Rf8 {[%clk 0:00:04]} 39. g4 {[%clk 0:00:05]}  Re7 {[%clk 0:00:04]} 40. Kg3 {[%clk 0:00:05]}  Re6 {[%clk 0:00:04]} 41. f4 {[%clk 0:00:04]}  Rxg6 {[%clk 0:00:04]} 42. d5 {[%clk 0:00:04]}  Ra6 {[%clk 0:00:04]} 43. Bc5 {[%clk 0:00:04]}  Rd8 {[%clk 0:00:03]} 44. d6 {[%clk 0:00:04]}  g6 {[%clk 0:00:02]} 45. f5 {[%clk 0:00:03]}  gxf5 {[%clk 0:00:03]} 46. gxf5 {[%clk 0:00:04]}  Kf7 {[%clk 0:00:03]} 47. Rb7+ {[%clk 0:00:04]}  Ke8 {[%clk 0:00:03]} 48. e6 {[%clk 0:00:04]}  Ra4 {[%clk 0:00:02]} 49. d7+ {[%clk 0:00:04]} 1-0


[Site "https://www.chess.com"]

[Event "Titled Tuesday Blitz April 19 Early 2022"]
[White "Babazada, Khazar"]
[Black "Fedoseev, Vladimir"]
[WhiteFideId "13413554"]
[BlackFideId "24130737"]
[WhiteElo "2406"]
[BlackElo "2726"]
[Result "0-1"]
[Round "04"]
[TimeControl "180+1"]
[Date "2022.04.19"]
[WhiteClock "0:00:46"]
[BlackClock "0:00:41"]

1. Nf3 {[%clk 0:03:00]}  d5 {[%clk 0:02:58]} 2. g3 {[%clk 0:03:00]}  Nd7 {[%clk 0:02:58]} 3. d4 {[%clk 0:03:00]}  Nb6 {[%clk 0:02:58]} 4. Bg2 {[%clk 0:03:00]}  c6 {[%clk 0:02:58]} 5. O-O {[%clk 0:03:01]}  Bf5 {[%clk 0:02:58]} 6. a4 {[%clk 0:03:01]}  a5 {[%clk 0:02:57]} 7. Nbd2 {[%clk 0:02:58]}  e6 {[%clk 0:02:52]} 8. c3 {[%clk 0:02:58]}  h6 {[%clk 0:02:50]} 9. Re1 {[%clk 0:02:58]}  Nf6 {[%clk 0:02:50]} 10. Nh4 {[%clk 0:02:54]}  Bh7 {[%clk 0:02:47]} 11. e4 {[%clk 0:02:55]}  g5 {[%clk 0:02:41]} 12. exd5 {[%clk 0:02:23]}  gxh4 {[%clk 0:02:35]} 13. dxe6 {[%clk 0:02:22]}  Be7 {[%clk 0:02:20]} 14. exf7+ {[%clk 0:02:22]}  Kxf7 {[%clk 0:02:20]} 15. Qb3+ {[%clk 0:02:17]}  Kf8 {[%clk 0:02:19]} 16. Nc4 {[%clk 0:02:06]}  Nxc4 {[%clk 0:02:13]} 17. Bxh6+ {[%clk 0:02:06]}  Ke8 {[%clk 0:02:05]} 18. Qxb7 {[%clk 0:01:47]}  Kf7 {[%clk 0:01:52]} 19. Bh3 {[%clk 0:01:43]}  Be4 {[%clk 0:01:46]} 20. Rxe4 {[%clk 0:01:34]}  Nxe4 {[%clk 0:01:41]} 21. Qxc6 {[%clk 0:01:33]}  Ncd6 {[%clk 0:01:04]} 22. Qd5+ {[%clk 0:01:33]}  Kg6 {[%clk 0:01:04]} 23. Qe6+ {[%clk 0:01:01]}  Bf6 {[%clk 0:01:01]} 24. Bf4 {[%clk 0:00:58]}  Qc8 {[%clk 0:00:52]} 25. Qxc8 {[%clk 0:00:47]}  Nxc8 {[%clk 0:00:43]} 26. Bg2 {[%clk 0:00:46]}  Ncd6 {[%clk 0:00:41]} 0-1


[Site "https://www.chess.com"]

[Event "Titled Tuesday Blitz April 19 Early 2022"]
[White "Di Nicolantonio, Lucas"]
[Black "Grischuk, Alexander"]
[WhiteFideId "680460"]
[BlackFideId "4126025"]
[WhiteElo "2381"]
[BlackElo "2762"]
[Result "0-1"]
[Round "04"]
[TimeControl "180+1"]
[Date "2022.04.19"]
[WhiteClock "0:00:02"]
[BlackClock "0:00:31"]

1. e4 {[%clk 0:03:00]}  e5 {[%clk 0:02:59]} 2. Nf3 {[%clk 0:03:00]}  Nc6 {[%clk 0:02:59]} 3. d4 {[%clk 0:03:00]}  exd4 {[%clk 0:02:59]} 4. Nxd4 {[%clk 0:03:01]}  Bb4+ {[%clk 0:02:52]} 5. c3 {[%clk 0:03:00]}  Bc5 {[%clk 0:02:53]} 6. Nxc6 {[%clk 0:02:53]}  bxc6 {[%clk 0:02:50]} 7. Bc4 {[%clk 0:02:52]}  Qh4 {[%clk 0:02:40]} 8. O-O {[%clk 0:02:51]}  Nf6 {[%clk 0:02:39]} 9. Nd2 {[%clk 0:02:45]}  O-O {[%clk 0:02:36]} 10. Nf3 {[%clk 0:02:12]}  Qxe4 {[%clk 0:02:33]} 11. Bd3 {[%clk 0:02:13]}  Qg4 {[%clk 0:02:22]} 12. Bg5 {[%clk 0:01:48]}  Nd5 {[%clk 0:02:13]} 13. h3 {[%clk 0:01:33]}  Qh5 {[%clk 0:02:10]} 14. c4 {[%clk 0:01:23]}  h6 {[%clk 0:01:54]} 15. Bd2 {[%clk 0:01:07]}  Nf6 {[%clk 0:01:47]} 16. Qc2 {[%clk 0:00:53]}  a5 {[%clk 0:01:39]} 17. a3 {[%clk 0:00:45]}  a4 {[%clk 0:01:33]} 18. Bc3 {[%clk 0:00:46]}  d6 {[%clk 0:01:29]} 19. Nd2 {[%clk 0:00:26]}  Be6 {[%clk 0:01:06]} 20. Bxf6 {[%clk 0:00:25]}  gxf6 {[%clk 0:01:07]} 21. Ne4 {[%clk 0:00:26]}  Bd4 {[%clk 0:01:07]} 22. Ng3 {[%clk 0:00:22]}  Qh4 {[%clk 0:01:01]} 23. Rad1 {[%clk 0:00:19]}  Qxg3 {[%clk 0:00:44]} 24. Bh7+ {[%clk 0:00:18]}  Kg7 {[%clk 0:00:44]} 25. Rxd4 {[%clk 0:00:19]}  Qe5 {[%clk 0:00:45]} 26. Rh4 {[%clk 0:00:04]}  f5 {[%clk 0:00:35]} 27. Qd2 {[%clk 0:00:05]}  Qf6 {[%clk 0:00:36]} 28. Qf4 {[%clk 0:00:02]}  Kxh7 {[%clk 0:00:31]} 0-1


[Site "https://www.chess.com"]